lending/lending_fUSD_20250131
["ID","MTS","AMOUNT","RATE_DAILY","PERIOD"]
[351066502,1738323064353,-1218.3,0.00016712,2]
[351066503,1738323064362,-500.0,0.00016712,2]
[351066504,1738323064573,-1319.18,0.00016712,2]
[351066505,1738323064584,-1340.29,0.00016712,2]
[351066506,1738323064593,-500.0,0.00016712,2]
[351066507,1738323064602,-500.0,0.00016712,2]
[351066508,1738323064611,-500.0,0.00016712,2]
[351066509,1738323064621,-500.0,0.00016712,2]
[351066510,1738323064630,-824.43,0.00016712,2]
[351066511,1738323064641,-500.0,0.00016712,2]
[351066512,1738323064651,-500.0,0.00016712,2]
[351066513,1738323064660,-906.09,0.00016712,2]
[351066514,1738323064669,-1107.6,0.00016712,2]
[351066515,1738323064679,-500.0,0.00016712,2]
[351066516,1738323064688,-500.0,0.00016712,2]
[351066517,1738323064697,-198.44011849,0.00016712,2]
[351066518,1738323064707,-500.0,0.00016712,2]
[351066519,1738323064717,-1720.71,0.00016712,2]
[351066520,1738323064727,-500.0,0.00016712,2]
[351066521,1738323064736,-685.52,0.00016712,2]
[351066522,1738323064745,-500.0,0.00016712,2]
[351066523,1738323064758,-500.0,0.00016712,2]
[351066524,1738323064768,-500.0,0.00016712,2]
[351066525,1738323064777,-500.0,0.00016712,2]
[351066526,1738323064786,-500.0,0.00016712,2]
[351066527,1738323064796,-500.0,0.00016712,2]
[351066528,1738323064806,-631.66654581,0.00016712,2]
[351066529,1738323064815,-675.93,0.00016712,2]
[351066530,1738323064824,-502.60881132,0.00016712,2]
[351066531,1738323064834,-500.0,0.00016712,2]
[351066532,1738323064843,-517.89,0.00016712,2]
[351066533,1738323064852,-505.96456797,0.00016712,2]
[351066534,1738323064862,-500.0,0.00016712,2]
[351066535,1738323064871,-531.87485959,0.00016712,2]
[351066536,1738323064882,-1524.37,0.00016712,2]
[351066537,1738323064893,-952.99,0.00016712,2]
[351066538,1738323064903,-500.0,0.00016712,2]
[351066539,1738323064912,-500.0,0.00016712,2]
[351066540,1738323064922,-1065.27,0.00016712,2]
[351066541,1738323064931,-500.0,0.00016712,2]
[351066542,1738323064941,-540.49,0.00016712,2]
[351066543,1738323064951,-1066.82,0.00016712,2]
[351066544,1738323064960,-500.0,0.00016712,2]
[351066545,1738323064969,-660.13,0.00016712,2]
[351066546,1738323064979,-2110.08,0.00016712,2]
[351066547,1738323064992,-500.0,0.00016712,2]
[351066548,1738323065001,-500.0,0.00016712,2]
[351066549,1738323065011,-517.52409394,0.00016712,2]
[351066550,1738323065020,-500.0,0.00016712,2]
[351066551,1738323065030,-500.0,0.00016712,2]
[351066552,1738323065040,-500.0,0.00016712,2]
[351066553,1738323065049,-500.0,0.00016712,2]
[351066554,1738323065059,-872.44,0.00016712,2]
[351066555,1738323065068,-500.0,0.00016712,2]
[351066556,1738323065078,-500.0,0.00016712,2]
[351066557,1738323065087,-299.86522783,0.00016712,2]
[351066558,1738323065096,-500.0,0.00016712,2]
[351066559,1738323065106,-1188.82,0.00016712,2]
[351066560,1738323065115,-500.0,0.00016712,2]
[351066561,1738323065124,-500.0,0.00016712,2]
[351066562,1738323065133,-500.0,0.00016712,2]
[351066563,1738323065144,-2212.75,0.00016712,2]
[351066564,1738323065154,-500.0,0.00016712,2]
[351066565,1738323065163,-2571.72,0.00016712,2]
[351066566,1738323065172,-500.0,0.00016712,2]
[351066567,1738323065182,-500.0,0.00016712,2]
[351066568,1738323065191,-1396.67,0.00016712,2]
[351066569,1738323065201,-502.78828362,0.00016712,2]
[351066570,1738323065211,-2264.19,0.00016712,2]
[351066571,1738323065220,-615.04,0.00016712,2]
[351066572,1738323065230,-500.0,0.00016712,2]
[351066573,1738323065239,-515.48737578,0.00016712,2]
[351066574,1738323065248,-503.29666369,0.00016712,2]
[351066575,1738323065257,-500.0,0.00016712,2]
[351066576,1738323065266,-500.0,0.00016712,2]
[351066577,1738323065276,-1486.69,0.00016712,2]
[351066578,1738323065285,-500.0,0.00016712,2]
[351066579,1738323065294,-1434.53,0.00016712,2]
[351066580,1738323065303,-500.0,0.00016712,2]
[351066581,1738323065312,-500.0,0.00016712,2]
[351066582,1738323065322,-4002.22,0.00016712,2]
[351066583,1738323065331,-500.0,0.00016712,2]
[351066584,1738323065340,-842.74,0.00016712,2]
[351066585,1738323065350,-500.0,0.00016712,2]
[351066586,1738323065360,-1857.52,0.00016712,2]
[351066587,1738323065369,-500.0,0.00016712,2]
[351066588,1738323065379,-1874.3,0.00016712,2]
[351066589,1738323065391,-500.0,0.00016712,2]
[351066590,1738323065400,-500.0,0.00016712,2]
[351066591,1738323065410,-2209.64,0.00016712,2]
[351066592,1738323065419,-500.0,0.00016712,2]
[351066593,1738323065429,-1744.69,0.00016712,2]
[351066594,1738323065438,-500.0,0.00016712,2]
[351066595,1738323065448,-500.0,0.00016712,2]
[351066596,1738323065458,-500.0,0.00016712,2]
[351066597,1738323065467,-500.0,0.00016712,2]
[351066598,1738323065477,-1162.31,0.00016712,2]
[351066599,1738323065486,-2054.43,0.00016712,2]
[351066600,1738323065495,-500.0,0.00016712,2]
[351066601,1738323065505,-500.0,0.00016712,2]
[351066602,1738323065515,-500.0,0.00016712,2]
[351066603,1738323065524,-1690.08,0.00016712,2]
[351066604,1738323065533,-500.0,0.00016712,2]
[351066605,1738323065544,-2453.26,0.00016712,2]
[351066606,1738323065553,-2088.93,0.00016712,2]
[351066607,1738323065563,-500.0,0.00016712,2]
[351066608,1738323065572,-500.0,0.00016712,2]
[351066609,1738323065582,-432.38607882,0.00016712,2]
[351066610,1738323065591,-1384.15,0.00016712,2]
[351066611,1738323065601,-2748.88,0.00016712,2]
[351066612,1738323065610,-500.0,0.00016712,2]
[351066613,1738323065622,-500.0,0.00016712,2]
[351066614,1738323065632,-500.0,0.00016712,2]
[351066615,1738323065642,-1157.73,0.00016712,2]
[351066616,1738323065651,-500.0,0.00016712,2]
[351066617,1738323065660,-500.0,0.00016712,2]
[351066618,1738323065671,-500.0,0.00016712,2]
[351066619,1738323065681,-500.0,0.00016712,2]
[351066620,1738323065690,-571.39442585,0.00016712,2]
[351066621,1738323065701,-936.11,0.00016712,2]
[351066622,1738323065710,-500.0,0.00016712,2]
[351066623,1738323065721,-500.0,0.00016712,2]
[351066624,1738323065730,-500.0,0.00016712,2]
[351066625,1738323065739,-500.0,0.00016712,2]
[351066626,1738323065749,-783.32,0.00016712,2]
[351066627,1738323065759,-500.0,0.00016712,2]
[351066628,1738323065769,-823.42,0.00016712,2]
[351066629,1738323065778,-500.0,0.00016712,2]
[351066630,1738323065788,-522.93,0.00016712,2]
[351066631,1738323065798,-500.0,0.00016712,2]
[351066632,1738323065808,-500.0,0.00016712,2]
[351066633,1738323065818,-500.0,0.00016712,2]
[351066634,1738323065827,-2972.09,0.00016712,2]
[351066635,1738323065838,-500.0,0.00016712,2]
[351066636,1738323065847,-1094.11,0.00016712,2]
[351066637,1738323065857,-500.0,0.00016712,2]
[351066638,1738323065867,-1747.36,0.00016712,2]
[351066639,1738323065878,-1202.8,0.00016712,2]
[351066640,1738323065890,-500.0,0.00016712,2]
[351066641,1738323065900,-500.0,0.00016712,2]
[351066642,1738323065909,-1325.09,0.00016712,2]
[351066643,1738323065920,-500.0,0.00016712,2]
[351066644,1738323065929,-500.0,0.00016712,2]
[351066645,1738323065939,-500.0,0.00016712,2]
[351066646,1738323065949,-313.99970933,0.00016712,2]
[351066647,1738323065961,-1401.57,0.00016712,2]
[351066648,1738323065970,-705.87,0.00016712,2]
[351066649,1738323065981,-500.0,0.00016712,2]
[351066650,1738323065994,-500.0,0.00016712,2]
[351066651,1738323066003,-517.44646095,0.00016712,2]
[351066652,1738323066012,-500.0,0.00016712,2]
[351066653,1738323066022,-959.86,0.00016712,2]
[351066654,1738323066033,-598.63,0.00016712,2]
[351066655,1738323066043,-500.0,0.00016712,2]
[351066656,1738323066052,-500.0,0.00016712,2]
[351066657,1738323066062,-500.0,0.00016712,2]
[351066658,1738323066072,-227.0962237,0.00016712,2]
[351066659,1738323066081,-500.0,0.00016712,2]
[351066660,1738323066091,-1400.54,0.00016712,2]
[351066661,1738323066100,-504.31010311,0.00016712,2]
[351066662,1738323066109,-1501.98,0.00016712,2]
[351066663,1738323066121,-1280.35,0.00016712,2]
[351066664,1738323066130,-1680.19,0.00016712,2]
[351066665,1738323066141,-500.0,0.00016712,2]
[351066666,1738323066150,-500.0,0.00016712,2]
[351066667,1738323066159,-536.6,0.00016712,2]
[351066668,1738323066169,-526.79,0.00016712,2]
[351066669,1738323066179,-1004.99,0.00016712,2]
[351066670,1738323066189,-1188.35,0.00016712,2]
[351066671,1738323066198,-529.21,0.00016712,2]
[351066672,1738323066207,-1116.16,0.00016712,2]
[351066673,1738323066217,-500.0,0.00016712,2]
[351066674,1738323066227,-1399.48,0.00016712,2]
[351066675,1738323066236,-1496.14,0.00016712,2]
[351066676,1738323066246,-500.0,0.00016712,2]
[351066677,1738323066255,-1080.75,0.00016712,2]
[351066678,1738323066264,-500.0,0.00016712,2]
[351066679,1738323066273,-920.99,0.00016712,2]
[351066680,1738323066283,-500.0,0.00016712,2]
[351066681,1738323066292,-500.0,0.00016712,2]
[351066682,1738323066301,-500.0,0.00016712,2]
[351066683,1738323066310,-524.05,0.00016712,2]
[351066684,1738323066321,-500.0,0.00016712,2]
[351066685,1738323066331,-440.5142811,0.00016712,2]
[351066686,1738323066340,-500.0,0.00016712,2]
[351066687,1738323066349,-543.73551679,0.00016712,2]
[351066688,1738323066359,-917.77,0.00016712,2]
[351066689,1738323066368,-517.77913408,0.00016712,2]
[351066690,1738323066378,-500.0,0.00016712,2]
[351066691,1738323066394,-1066.06,0.00016712,2]
[351066692,1738323066403,-500.0,0.00016712,2]
[351066693,1738323066413,-1221.67,0.00016712,2]
[351066694,1738323066422,-715.06,0.00016712,2]
[351066695,1738323066431,-599.94,0.00016712,2]
[351066696,1738323066440,-543.14,0.00016712,2]
[351066697,1738323066450,-1491.37,0.00016712,2]
[351066698,1738323066459,-2242.55,0.00016712,2]
[351066699,1738323066468,-500.0,0.00016712,2]
[351066700,1738323066478,-967.53,0.00016712,2]
[351066701,1738323066488,-500.0,0.00016712,2]
[351066702,1738323066497,-2304.6,0.00016712,2]
[351066703,1738323066507,-500.0,0.00016712,2]
[351066704,1738323066516,-500.0,0.00016712,2]
[351066705,1738323066525,-674.76,0.00016712,2]
[351066706,1738323066534,-533.79,0.00016712,2]
[351066707,1738323066544,-503.66591788,0.00016712,2]
[351066708,1738323066553,-691.34,0.00016712,2]
[351066709,1738323066563,-500.0,0.00016712,2]
[351066710,1738323066573,-500.32757117,0.00016712,2]
[351066711,1738323066583,-655.5,0.00016712,2]
[351066712,1738323066592,-500.0,0.00016712,2]
[351066713,1738323066602,-927.88,0.00016712,2]
[351066714,1738323066611,-500.0,0.00016712,2]
[351066715,1738323066620,-500.0,0.00016712,2]
[351066716,1738323066630,-500.0,0.00016712,2]
[351066717,1738323066641,-1225.27,0.00016712,2]
[351066718,1738323066651,-1232.82,0.00016712,2]
[351066719,1738323066660,-660.11,0.00016712,2]
[351066720,1738323066669,-500.0,0.00016712,2]
[351066721,1738323066679,-500.0,0.00016712,2]
[351066722,1738323066688,-2677.1,0.00016712,2]
[351066723,1738323066698,-500.0,0.00016712,2]
[351066724,1738323066707,-2095.21,0.00016712,2]
[351066725,1738323066715,-500.0,0.00016712,2]
[351066726,1738323066725,-500.0,0.00016712,2]
[351066727,1738323066734,-1904.55,0.00016712,2]
[351066728,1738323066743,-500.0,0.00016712,2]
[351066729,1738323066753,-500.0,0.00016712,2]
[351066730,1738323066762,-500.0,0.00016712,2]
[351066731,1738323066771,-407.86264519,0.00016712,2]
[351066732,1738323066780,-531.00220943,0.00016712,2]
[351066733,1738323066790,-1345.25,0.00016712,2]
[351066734,1738323066799,-799.53,0.00016712,2]
[351066735,1738323066809,-500.0,0.00016712,2]
[351066736,1738323066819,-500.0,0.00016712,2]
[351066737,1738323066828,-1324.34,0.00016712,2]
[351066738,1738323066838,-504.00760062,0.00016712,2]
[351066739,1738323066847,-500.0,0.00016712,2]
[351066740,1738323066856,-500.0,0.00016712,2]
[351066741,1738323066865,-500.0,0.00016712,2]
[351066742,1738323066875,-500.0,0.00016712,2]
[351066743,1738323066885,-500.0,0.00016712,2]
[351066744,1738323066896,-500.0,0.00016712,2]
[351066745,1738323066906,-500.0,0.00016712,2]
[351066746,1738323066915,-500.0,0.00016712,2]
[351066747,1738323066925,-1071.62,0.00016712,2]
[351066748,1738323066934,-500.0,0.00016712,2]
[351066749,1738323066944,-500.0,0.00016712,2]
[351066750,1738323066954,-500.0,0.00016712,2]
[351066751,1738323066964,-500.0,0.00016712,2]
[351066752,1738323066973,-500.0,0.00016712,2]
[351066753,1738323066984,-799.05,0.00016712,2]
[351066754,1738323066996,-500.0,0.00016712,2]
[351066755,1738323067007,-655.67,0.00016712,2]
[351066756,1738323067017,-500.0,0.00016712,2]
[351066757,1738323067027,-500.0,0.00016712,2]
[351066758,1738323067037,-500.0,0.00016712,2]
[351066759,1738323067047,-500.0,0.00016712,2]
[351066760,1738323067057,-4098.85,0.00016712,2]
[351066761,1738323067067,-924.74,0.00016712,2]
[351066762,1738323067076,-1415.06,0.00016712,2]
[351066763,1738323067086,-500.0,0.00016712,2]
[351066764,1738323067095,-513.48,0.00016712,2]
[351066765,1738323067105,-639.23,0.00016712,2]
[351066766,1738323067115,-1437.94,0.00016712,2]
[351066767,1738323067124,-500.0,0.00016712,2]
[351066768,1738323067133,-718.04,0.00016712,2]
[351066769,1738323067143,-500.0,0.00016712,2]
[351066770,1738323067151,-500.0,0.00016712,2]
[351066771,1738323067162,-1179.86,0.00016712,2]
[351066772,1738323067171,-500.0,0.00016712,2]
[351066773,1738323067180,-834.34,0.00016712,2]
[351066774,1738323067189,-1156.02,0.00016712,2]
[351066775,1738323067199,-500.0,0.00016712,2]
[351066776,1738323067208,-500.0,0.00016712,2]
[351066777,1738323067217,-2167.27,0.00016712,2]
[351066778,1738323067226,-678.8,0.00016712,2]
[351066779,1738323067235,-934.67,0.00016712,2]
[351066780,1738323067244,-773.7,0.00016712,2]
[351066781,1738323067407,-500.0,0.00016712,2]
[351066782,1738323067421,-500.0,0.00016712,2]
[351066783,1738323067430,-500.0,0.00016712,2]
[351066784,1738323067441,-762.18,0.00016712,2]
[351066785,1738323067450,-2800.41,0.00016712,2]
[351066786,1738323067459,-500.0,0.00016712,2]
[351066787,1738323067468,-500.0,0.00016712,2]
[351066788,1738323067477,-500.0,0.00016712,2]
[351066789,1738323067487,-500.0,0.00016712,2]
[351066790,1738323067496,-7193.56,0.00016712,2]
[351066791,1738323067505,-502.05637814,0.00016712,2]
[351066792,1738323067515,-842.43,0.00016712,2]
[351066793,1738323067524,-2149.68,0.00016712,2]
[351066794,1738323067535,-734.91,0.00016712,2]
[351066795,1738323067544,-2943.67,0.00016712,2]
[351066796,1738323067553,-506.53003196,0.00016712,2]
[351066797,1738323067563,-500.0,0.00016712,2]
[351066798,1738323067572,-500.0,0.00016712,2]
[351066799,1738323067581,-500.0,0.00016712,2]
[351066800,1738323067591,-851.72,0.00016712,2]
[351066801,1738323067601,-1288.98,0.00016712,2]
[351066802,1738323067611,-500.0,0.00016712,2]
[351066803,1738323067620,-500.0,0.00016712,2]
[351066804,1738323067630,-1500.88,0.00016712,2]
[351066805,1738323067639,-500.0,0.00016712,2]
[351066806,1738323067649,-948.46,0.00016712,2]
[351066807,1738323067658,-500.0,0.00016712,2]
[351066808,1738323067671,-1329.35,0.00016712,2]
[351066809,1738323067680,-500.0,0.00016712,2]
[351066810,1738323067689,-528.070821,0.00016712,2]
[351066811,1738323067698,-3834.64,0.00016712,2]
[351066812,1738323067707,-500.0,0.00016712,2]
[351066813,1738323067716,-500.0,0.00016712,2]
[351066814,1738323067726,-924.07,0.00016712,2]
[351066815,1738323067735,-500.0,0.00016712,2]
[351066816,1738323067744,-500.0,0.00016712,2]
[351066817,1738323067754,-1040.64,0.00016712,2]
[351066818,1738323067763,-500.0,0.00016712,2]
[351066819,1738323067772,-500.0,0.00016712,2]
[351066820,1738323067781,-500.0,0.00016712,2]
[351066821,1738323067791,-500.0,0.00016712,2]
[351066822,1738323067801,-1562.87,0.00016712,2]
[351066823,1738323067811,-500.0,0.00016712,2]
[351066824,1738323067822,-1264.17,0.00016712,2]
[351066825,1738323067831,-500.0,0.00016712,2]
[351066826,1738323067841,-1799.72,0.00016712,2]
[351066827,1738323067851,-500.0,0.00016712,2]
[351066828,1738323067860,-6544.06,0.00016712,2]
[351066829,1738323067870,-1156.79,0.00016712,2]
[351066830,1738323067879,-4272.8,0.00016712,2]
[351066831,1738323067889,-500.0,0.00016712,2]
[351066832,1738323067903,-964.18,0.00016712,2]
[351066833,1738323067913,-500.0,0.00016712,2]
[351066834,1738323067922,-5005.42,0.00016712,2]
[351066835,1738323067931,-500.0,0.00016712,2]
[351066836,1738323067941,-500.0,0.00016712,2]
[351066837,1738323067951,-7290.56,0.00016712,2]
[351066838,1738323067960,-1106.15,0.00016712,2]
[351066839,1738323067971,-615.59,0.00016712,2]
[351066840,1738323067981,-3367.77,0.00016712,2]
[351066841,1738323067992,-2830.59,0.00016712,2]
[351066842,1738323068001,-500.0,0.00016712,2]
[351066843,1738323068011,-500.0,0.00016712,2]
[351066844,1738323068021,-820.23,0.00016712,2]
[351066845,1738323068031,-630.22,0.00016712,2]
[351066846,1738323068040,-500.0,0.00016712,2]
[351066847,1738323068050,-500.0,0.00016712,2]
[351066848,1738323068059,-500.0,0.00016712,2]
[351066849,1738323068070,-500.0,0.00016712,2]
[351066850,1738323068079,-665.12,0.00016712,2]
[351066851,1738323068089,-500.0,0.00016712,2]
[351066852,1738323068098,-1258.51,0.00016712,2]
[351066853,1738323068108,-1775.32,0.00016712,2]
[351066854,1738323068117,-500.0,0.00016712,2]
[351066855,1738323068127,-3871.59,0.00016712,2]
[351066856,1738323068136,-1762.27,0.00016712,2]
[351066857,1738323068148,-1387.06,0.00016712,2]
[351066858,1738323068158,-1539.71,0.00016712,2]
[351066859,1738323068168,-1371.01,0.00016712,2]
[351066860,1738323068178,-710.8,0.00016712,2]
[351066861,1738323068187,-500.0,0.00016712,2]
[351066862,1738323068196,-500.0,0.00016712,2]
[351066863,1738323068207,-962.21,0.00016712,2]
[351066864,1738323068219,-1636.23,0.00016712,2]
[351066865,1738323068228,-500.0,0.00016712,2]
[351066866,1738323068237,-502.0458038,0.00016712,2]
[351066867,1738323068246,-500.0,0.00016712,2]
[351066868,1738323068255,-1387.02,0.00016712,2]
[351066869,1738323068265,-500.0,0.00016712,2]
[351066870,1738323068274,-1380.28,0.00016712,2]
[351066871,1738323068284,-1456.65,0.00016712,2]
[351066872,1738323068293,-500.0,0.00016712,2]
[351066873,1738323068302,-1906.65,0.00016712,2]
[351066874,1738323068311,-1067.94,0.00016712,2]
[351066875,1738323068321,-500.0,0.00016712,2]
[351066876,1738323068331,-500.0,0.00016712,2]
[351066877,1738323068341,-409.23210003,0.00016712,2]
[351066878,1738323068350,-500.0,0.00016712,2]
[351066879,1738323068361,-3531.48,0.00016712,2]
[351066880,1738323068370,-500.86,0.00016712,2]
[351066881,1738323068380,-486.07951758,0.00016712,2]
[351066882,1738323068389,-1186.73,0.00016712,2]
[351066883,1738323068400,-500.0,0.00016712,2]
[351066884,1738323068409,-1411.37,0.00016712,2]
[351066885,1738323068418,-509.93,0.00016712,2]
[351066886,1738323068427,-500.0,0.00016712,2]
[351066887,1738323068437,-500.0,0.00016712,2]
[351066888,1738323068448,-2122.9,0.00016712,2]
[351066889,1738323068464,-902.27,0.00016712,2]
[351066890,1738323068474,-500.0,0.00016712,2]
[351066891,1738323068485,-500.0,0.00016712,2]
[351066892,1738323068496,-2839.89,0.00016712,2]
[351066893,1738323068505,-1169.81,0.00016712,2]
[351066894,1738323068515,-2045.77,0.00016712,2]
[351066895,1738323068525,-845.02,0.00016712,2]
[351066896,1738323068534,-2892.95,0.00016712,2]
[351066897,1738323068542,-500.0,0.00016712,2]
[351066898,1738323068551,-500.0,0.00016712,2]
[351066899,1738323068560,-1131.85,0.00016712,2]
[351066900,1738323068569,-3027.76,0.00016712,2]
[351066901,1738323068578,-4851.36,0.00016712,2]
[351066902,1738323068587,-197.03499902,0.00016712,2]
[351066903,1738323068596,-1718.8,0.00016712,2]
[351066904,1738323068606,-2594.05,0.00016712,2]
[351066905,1738323068615,-1324.51,0.00016712,2]
[351066906,1738323068624,-501.89234917,0.00016712,2]
[351066907,1738323068633,-1106.09,0.00016712,2]
[351066908,1738323068642,-1337.35,0.00016712,2]
[351066909,1738323068651,-502.87673331,0.00016712,2]
[351066910,1738323068660,-500.0,0.00016712,2]
[351066911,1738323068669,-500.0,0.00016712,2]
[351066912,1738323068678,-949.11,0.00016712,2]
[351066913,1738323068687,-1261.33,0.00016712,2]
[351066914,1738323068696,-500.0,0.00016712,2]
[351066915,1738323068705,-500.0,0.00016712,2]
[351066916,1738323068714,-710.62,0.00016712,2]
[351066917,1738323068723,-705.09,0.00016712,2]
[351066918,1738323068732,-500.0,0.00016712,2]
[351066919,1738323068742,-650.7,0.00016712,2]
[351066920,1738323068751,-500.0,0.00016712,2]
[351066921,1738323068761,-500.0,0.00016712,2]
[351066922,1738323068770,-500.0,0.00016712,2]
[351066923,1738323068780,-742.48,0.00016712,2]
[351066924,1738323068789,-2364.34,0.00016712,2]
[351066925,1738323068798,-9206.65,0.00016712,2]
[351066926,1738323068807,-1730.79,0.00016712,2]
[351066927,1738323068817,-500.0,0.00016712,2]
[351066928,1738323068826,-2632.89,0.00016712,2]
[351066929,1738323068835,-500.0,0.00016712,2]
[351066930,1738323068845,-500.0,0.00016712,2]
[351066931,1738323068854,-500.0,0.00016712,2]
[351066932,1738323068863,-994.44,0.00016712,2]
[351066933,1738323068873,-2217.98,0.00016712,2]
[351066934,1738323068883,-1185.07,0.00016712,2]
[351066935,1738323068895,-2299.57,0.00016712,2]
[351066936,1738323068905,-754.96,0.00016712,2]
[351066937,1738323068914,-637.68,0.00016712,2]
[351066938,1738323068925,-1695.38,0.00016712,2]
[351066939,1738323068934,-500.00190394,0.00016712,2]
[351066940,1738323068943,-959.09,0.00016712,2]
[351066941,1738323068953,-1576.65,0.00016712,2]
[351066942,1738323068962,-1408.79,0.00016712,2]
[351066943,1738323068971,-3752.37,0.00016712,2]
[351066944,1738323068981,-526.71434535,0.00016712,2]
[351066945,1738323068993,-1401.32,0.00016712,2]
[351066946,1738323069002,-1087.69,0.00016712,2]
[351066947,1738323069012,-989.74,0.00016712,2]
[351066948,1738323069023,-500.0,0.00016712,2]
[351066949,1738323069034,-500.0,0.00016712,2]
[351066950,1738323069043,-500.0,0.00016712,2]
[351066951,1738323069053,-8215.37,0.00016712,2]
[351066952,1738323069063,-2515.21,0.00016712,2]
[351066953,1738323069074,-647.13,0.00016712,2]
[351066954,1738323069083,-2597.85,0.00016712,2]
[351066955,1738323069092,-500.0,0.00016712,2]
[351066956,1738323069101,-2757.06,0.00016712,2]
[351066957,1738323069111,-909.1,0.00016712,2]
[351066958,1738323069120,-500.0,0.00016712,2]
[351066959,1738323069130,-1622.36,0.00016712,2]
[351066960,1738323069139,-1810.3,0.00016712,2]
[351066961,1738323069151,-2894.94,0.00016712,2]
[351066962,1738323069160,-2103.99,0.00016712,2]
[351066963,1738323069170,-500.0,0.00016712,2]
[351066964,1738323069179,-757.69,0.00016712,2]
[351066965,1738323069188,-688.07,0.00016712,2]
[351066966,1738323069198,-4454.49,0.00016712,2]
[351066967,1738323069206,-3861.01,0.00016712,2]
[351066968,1738323069215,-500.0,0.00016712,2]
[351066969,1738323069224,-500.0,0.00016712,2]
[351066970,1738323069233,-2025.17,0.00016712,2]
[351066971,1738323069243,-500.0,0.00016712,2]
[351066972,1738323069252,-3606.29,0.00016712,2]
[351066973,1738323069260,-500.0,0.00016712,2]
[351066974,1738323069269,-536.36402145,0.00016712,2]
[351066975,1738323069279,-3907.41,0.00016712,2]
[351066976,1738323069288,-500.0,0.00016712,2]
[351066977,1738323069297,-500.0,0.00016712,2]
[351066978,1738323069307,-500.0,0.00016712,2]
[351066979,1738323069316,-2440.37,0.00016712,2]
[351066980,1738323069326,-1745.49,0.00016712,2]
[351066981,1738323069336,-500.0,0.00016712,2]
[351066982,1738323069345,-5548.15,0.00016712,2]
[351066983,1738323069354,-500.0,0.00016712,2]
[351066984,1738323069364,-3168.71,0.00016712,2]
[351066985,1738323069373,-3752.67,0.00016712,2]
[351066986,1738323069383,-1435.49,0.00016712,2]
[351066987,1738323069393,-1082.67,0.00016712,2]
[351066988,1738323069403,-500.0,0.00016712,2]
[351066989,1738323069412,-2282.44,0.00016712,2]
[351066990,1738323069421,-760.62,0.00016712,2]
[351066991,1738323069431,-1080.31,0.00016712,2]
[351066992,1738323069440,-500.0,0.00016712,2]
[351066993,1738323069450,-279.64016284,0.00016712,2]
[351066994,1738323069459,-941.91,0.00016712,2]
[351066995,1738323069469,-2947.86,0.00016712,2]
[351066996,1738323069478,-1273.21,0.00016712,2]
[351066997,1738323069487,-5608.95,0.00016712,2]
[351066998,1738323069496,-500.0,0.00016712,2]
[351066999,1738323069505,-3988.77,0.00016712,2]
[351067000,1738323069514,-4353.52,0.00016712,2]
[351067001,1738323069523,-943.25,0.00016712,2]